fUSD/lending_fUSD_20260510
["ID","MTS","AMOUNT","RATE_DAILY","PERIOD"]
[421968820,1778377861000,-201.11387068,0.00039599,30]
[421968821,1778377861000,-257.0,0.00039599,30]
[421968832,1778377861000,-5878.536299,0.0004179,14]
[421968834,1778377861000,-151.0,0.0004179,120]
[421968835,1778377861000,-722.199432,0.0004179,120]
[421968847,1778377861000,500.0,0.00013698,2]
[421968846,1778377861000,2005.90605,0.0002739,120]
[421968845,1778377861000,197.8108,9.296e-05,2]
[421968844,1778377861000,-373.78550104,0.00028767,2]
[421968842,1778377861000,-37665.23961741,0.00042,120]
[421968843,1778377861000,-252.89402284,0.00042,120]
[421968839,1778377861000,-500.0,0.00041889,120]
[421968840,1778377861000,-500.0,0.00041889,120]
[421968838,1778377861000,-722.199432,0.0004179,120]
[421968831,1778377861000,-722.199432,0.0004179,120]
[421968837,1778377861000,-722.199432,0.0004179,120]
[421968848,1778377861000,906.78,0.00025786,2]
[421968836,1778377861000,-722.199432,0.0004179,120]
[421968841,1778377861000,-8747.15767588,0.000419,2]
[421968849,1778377862000,300.0,0.00020989,2]
[421968852,1778377862000,300.0,0.00020989,2]
[421968850,1778377862000,300.0,0.00020989,2]
[421968851,1778377862000,300.0,0.00020989,2]
[421968853,1778377862000,308.54313848,0.00020989,2]
[421968855,1778377888000,-10000.01,9.43e-05,2]
[421968856,1778378011000,-468.38,9.38e-05,2]
[421968857,1778378011000,-300.0,9.428e-05,2]
[421968859,1778378041000,150.0,9.428e-05,2]
[421968858,1778378041000,300.0,9.428e-05,2]
[421968862,1778378101000,1200.0,9.428e-05,2]
[421968863,1778378104000,151.0,9.427e-05,2]
[421968866,1778378205000,150.88923077,0.0001,30]
[421968867,1778378221000,150.0,9.428e-05,2]
[421968870,1778378338000,2000.1,0.00027397,120]
[421968869,1778378338000,300.0,9.42e-05,2]
[421968868,1778378338000,1512.24,9.42e-05,2]
[421968872,1778378523000,507.35,0.00027397,120]
[421968874,1778378554000,105.95197358,8e-05,2]
[421968873,1778378554000,468.38,8e-05,2]
[421968881,1778378741000,-1211.63231367,9.242e-05,2]
[421968882,1778378748000,-204.25674214,9.242e-05,2]
[421968884,1778378779000,-66.58194419,9.242e-05,2]
[421968885,1778378779000,-133.41805581,9.242e-05,2]
[421968888,1778378853000,-151.08590079,9.382e-05,2]
[421968887,1778378853000,-152.0,9.333e-05,2]
[421968889,1778378853000,-151.08590079,9.383e-05,2]
[421968890,1778378853000,-300.0,9.418e-05,2]
[421968886,1778378853000,-48.45194419,9.242e-05,2]
[421968892,1778378853000,-193.0,9.419e-05,2]
[421968894,1778378853000,-300.0,9.419e-05,2]
[421968893,1778378853000,-1200.0,9.419e-05,2]
[421968895,1778378853000,-5471.5967463,9.42e-05,2]
[421968891,1778378853000,-300.0,9.419e-05,2]
[421968905,1778378952000,-1001.85202506,9.429e-05,2]
[421968911,1778378952000,-272.88817071,9.429e-05,2]
[421968910,1778378952000,-500.0,9.429e-05,2]
[421968912,1778378952000,-500.0,9.429e-05,2]
[421968909,1778378952000,-247.56481719,9.429e-05,2]
[421968908,1778378952000,-410.93613344,9.429e-05,2]
[421968907,1778378952000,-500.0,9.429e-05,2]
[421968906,1778378952000,-500.0,9.429e-05,2]
[421968897,1778378952000,-9696.07,9.398e-05,2]
[421968903,1778378952000,-5224.41743353,9.428e-05,2]
[421968902,1778378952000,-161.50568367,9.428e-05,2]
[421968901,1778378952000,-151.0,9.427e-05,2]
[421968898,1778378952000,-250.0,9.402e-05,2]
[421968899,1778378952000,-2500.85320006,9.419e-05,2]
[421968913,1778378952000,-500.0,9.429e-05,2]
[421968900,1778378952000,-500.0,9.42e-05,2]
[421968896,1778378952000,-151.08590078,9.383e-05,2]
[421968904,1778378952000,-150.0,9.428e-05,2]
[421968916,1778378952000,-502.92762223,9.429e-05,2]
[421968930,1778378952000,-500.0,9.429e-05,2]
[421968915,1778378952000,-501.16787376,9.429e-05,2]
[421968914,1778378952000,-585.69150924,9.429e-05,2]
[421968933,1778378952000,-500.0,9.429e-05,2]
[421968934,1778378952000,-500.0,9.429e-05,2]
[421968932,1778378952000,-500.0,9.429e-05,2]
[421968928,1778378952000,-500.0,9.429e-05,2]
[421968929,1778378952000,-500.0,9.429e-05,2]
[421968931,1778378952000,-500.0,9.429e-05,2]
[421968927,1778378952000,-500.0,9.429e-05,2]
[421968926,1778378952000,-500.0,9.429e-05,2]
[421968935,1778378952000,-500.0,9.429e-05,2]
[421968925,1778378952000,-500.0,9.429e-05,2]
[421968923,1778378952000,-500.0,9.429e-05,2]
[421968919,1778378952000,-500.0,9.429e-05,2]
[421968921,1778378952000,-500.0,9.429e-05,2]
[421968922,1778378952000,-587.84428344,9.429e-05,2]
[421968920,1778378952000,-500.0,9.429e-05,2]
[421968918,1778378952000,-500.0,9.429e-05,2]
[421968917,1778378952000,-500.0,9.429e-05,2]
[421968924,1778378952000,-500.0,9.429e-05,2]
[421968949,1778378953000,-500.0,9.429e-05,2]
[421968950,1778378953000,-500.0,9.429e-05,2]
[421968948,1778378953000,-500.0,9.429e-05,2]
[421968947,1778378953000,-500.0,9.429e-05,2]
[421968946,1778378953000,-178.76735311,9.429e-05,2]
[421968944,1778378953000,-500.0,9.429e-05,2]
[421968945,1778378953000,-321.23264689,9.429e-05,2]
[421968939,1778378953000,-500.0,9.429e-05,2]
[421968941,1778378953000,-500.0,9.429e-05,2]
[421968940,1778378953000,-500.0,9.429e-05,2]
[421968942,1778378953000,-500.0,9.429e-05,2]
[421968938,1778378953000,-500.0,9.429e-05,2]
[421968936,1778378953000,-500.0,9.429e-05,2]
[421968937,1778378953000,-500.0,9.429e-05,2]
[421968951,1778378953000,-436.52289004,9.429e-05,2]
[421968943,1778378953000,-500.0,9.429e-05,2]
[421968952,1778378953000,-500.0,9.429e-05,2]
[421968955,1778378953000,-500.0,9.429e-05,2]
[421968954,1778378953000,-500.0,9.429e-05,2]
[421968967,1778378953000,-500.0,9.429e-05,2]
[421968969,1778378953000,-500.0,9.429e-05,2]
[421968968,1778378953000,-500.0,9.429e-05,2]
[421968966,1778378953000,-500.0,9.429e-05,2]
[421968964,1778378953000,-500.0,9.429e-05,2]
[421968965,1778378953000,-500.0,9.429e-05,2]
[421968963,1778378953000,-500.0,9.429e-05,2]
[421968953,1778378953000,-500.0,9.429e-05,2]
[421968960,1778378953000,-500.0,9.429e-05,2]
[421968961,1778378953000,-500.0,9.429e-05,2]
[421968958,1778378953000,-500.0,9.429e-05,2]
[421968959,1778378953000,-500.0,9.429e-05,2]
[421968957,1778378953000,-500.0,9.429e-05,2]
[421968956,1778378953000,-500.0,9.429e-05,2]
[421968970,1778378953000,-500.0,9.429e-05,2]
[421968962,1778378953000,-500.0,9.429e-05,2]
[421968974,1778378954000,-189720.08640878,9.43e-05,2]
[421968972,1778378954000,-500.0,9.429e-05,2]
[421968971,1778378954000,-500.0,9.429e-05,2]
[421968973,1778378954000,-350.0,9.429e-05,2]
[421968975,1778378961000,-26492.02621339,9.43e-05,2]
[421968976,1778378966000,-5712.92127,9.43e-05,2]
[421968977,1778378994000,265.2,0.00013868,14]
[421968982,1778379031000,-375.102,9.329e-05,2]
[421968996,1778379032000,-152.0,0.00010091,2]
[421968990,1778379032000,-486.22258175,0.0001,2]
[421968998,1778379032000,-24999.99,0.00010091,2]
[421968995,1778379032000,-3765.54,0.00010017,2]
[421968994,1778379032000,-300.0,0.00010016,2]
[421968993,1778379032000,-300.0,0.00010016,2]
[421968983,1778379032000,-2173.5548,9.33e-05,2]
[421968989,1778379032000,-1200.0,9.999e-05,2]
[421968986,1778379032000,-169.61,9.769e-05,2]
[421968988,1778379032000,-152.0,9.935e-05,2]
[421968985,1778379032000,-200.0,9.565e-05,2]
[421968984,1778379032000,-208459.1087702,9.429e-05,2]
[421968999,1778379032000,-999.99,0.00010091,2]
[421968991,1778379032000,-1248.61808183,0.0001,2]
[421968997,1778379032000,-9999.99,0.00010091,2]
[421968987,1778379032000,-226.68035328,9.781e-05,2]
[421969001,1778379032000,-499.99,0.00010091,2]
[421968992,1778379032000,-634.83249748,0.0001,2]
[421969018,1778379032000,-4438.00906479,0.000107,2]
[421969017,1778379032000,-2769.66149264,0.000107,2]
[421969016,1778379032000,-4211.59187353,0.000107,2]
[421969015,1778379032000,-3082.87926876,0.000107,2]
[421969013,1778379032000,-271.07124003,0.000107,2]
[421969003,1778379032000,-299.99,0.00010091,2]
[421969010,1778379032000,-1155.59105616,0.000106,2]
[421969000,1778379032000,-150.99,0.00010091,2]
[421969014,1778379032000,-132066.73691834,0.000107,2]
[421969012,1778379032000,-500.0,0.00010673,2]
[421969004,1778379032000,-250.0,0.00010321,2]
[421969006,1778379032000,-5070.83646588,0.00010362,2]
[421969011,1778379032000,-500.0,0.00010673,2]
[421969002,1778379032000,-4430.27,0.00010091,2]
[421969008,1778379032000,-255.0,0.00010371,2]
[421969005,1778379032000,-250.0,0.00010321,2]
[421969051,1778379038000,-150.0,0.0001092,2]
[421969049,1778379038000,-150.09346512,0.00010897,2]
[421969050,1778379038000,-150.09346512,0.00010909,2]
[421969048,1778379038000,-150.0,0.00010892,2]
[421969054,1778379038000,-150.09346512,0.00010933,2]
[421969065,1778379038000,-150.0,0.00010989,2]
[421969061,1778379038000,-150.0,0.0001096,2]
[421969058,1778379038000,-150.09346512,0.00010958,2]
[421969062,1778379038000,-150.09346512,0.0001097,2]
[421969064,1778379038000,-150.0,0.00010985,2]
[421969066,1778379038000,-150.09346512,0.00010994,2]
[421969046,1778379038000,-150.0,0.0001088,2]
[421969056,1778379038000,-150.09346512,0.00010945,2]
[421969067,1778379038000,-1680.0,0.00010999,2]
[421969063,1778379038000,-150.09346512,0.00010982,2]
[421969069,1778379038000,-150.0,0.00011,2]
[421969068,1778379038000,-1193.48595915,0.00010999,2]
[421969070,1778379038000,-150.09346512,0.00011006,2]
[421969060,1778379038000,-150.0,0.00010959,2]
[421969045,1778379038000,-150.09346512,0.00010873,2]
[421969052,1778379038000,-150.09346512,0.00010921,2]
[421969043,1778379038000,-500.0,0.00010861,2]
[421969027,1778379038000,-150.0,0.000108,2]
[421969026,1778379038000,-562417.49501416,0.000107,2]
[421969028,1778379038000,-150.0,0.000108,2]
[421969029,1778379038000,-249.30418633,0.000108,2]
[421969032,1778379038000,-150.40896932,0.000108,2]
[421969030,1778379038000,-150.0,0.000108,2]
[421969038,1778379038000,-150.09346512,0.00010812,2]
[421969040,1778379038000,-150.09346512,0.00010836,2]
[421969047,1778379038000,-150.09346512,0.00010885,2]
[421969031,1778379038000,-248.12623186,0.000108,2]
[421969039,1778379038000,-150.09346512,0.00010824,2]
[421969035,1778379038000,-150.0,0.000108,2]
[421969036,1778379038000,-150.0,0.000108,2]
[421969037,1778379038000,-150.09346512,0.000108,2]
[421969042,1778379038000,-150.09346512,0.00010848,2]
[421969041,1778379038000,-150.0,0.0001084,2]
[421969072,1778379038000,-150.09346512,0.00011018,2]
[421969044,1778379038000,-150.09346512,0.00010861,2]
[421969033,1778379038000,-150.0,0.000108,2]
[421969034,1778379038000,-150.0,0.000108,2]
[421969075,1778379038000,-150.09346512,0.00011042,2]
[421969076,1778379038000,-150.09346512,0.00011055,2]
[421969131,1778379038000,-33865.2520738,0.00011099,2]
[421969127,1778379038000,-33865.2520738,0.00011099,2]
[421969122,1778379038000,-33865.25207389,0.00011099,2]
[421969129,1778379038000,-33865.2520738,0.00011099,2]
[421969133,1778379038000,-33865.2520738,0.00011099,2]
[421969135,1778379038000,-150.09346512,0.00011103,2]
[421969138,1778379038000,-150.09346512,0.00011115,2]
[421969140,1778379038000,-150.0,0.0001112,2]
[421969124,1778379038000,-33865.2520738,0.00011099,2]
[421969149,1778379038000,-500.0,0.00011135,2]
[421969145,1778379038000,-33865.2520738,0.00011134,2]
[421969156,1778379038000,-150.0,0.0001116,2]
[421969159,1778379038000,-150.0,0.00011169,2]
[421969153,1778379038000,-150.09346512,0.00011152,2]
[421969158,1778379038000,-150.09346512,0.00011164,2]
[421969147,1778379038000,-4909.43223916,0.00011134,2]
[421969161,1778379038000,-150.09346512,0.00011176,2]
[421969086,1778379038000,-500.58972115,0.00011073,2]
[421969142,1778379038000,-150.09346512,0.00011127,2]
[421969118,1778379038000,-520.0,0.00011099,2]
[421969152,1778379038000,-150.09346512,0.00011139,2]
[421969116,1778379038000,-9999.99,0.00011099,2]
[421969073,1778379038000,-150.09346512,0.0001103,2]
[421969120,1778379038000,-9999.99,0.00011099,2]
[421969078,1778379038000,-150.09346512,0.00011067,2]
[421969074,1778379038000,-150.0,0.0001104,2]
[421969071,1778379038000,-420.0,0.00011018,2]
[421969084,1778379038000,-500.23020647,0.00011073,2]
[421969080,1778379038000,-500.0,0.00011073,2]
[421969088,1778379038000,-150.0,0.00011077,2]
[421969108,1778379038000,-4909.43223916,0.00011099,2]
[421969082,1778379038000,-500.0,0.00011073,2]
[421969096,1778379038000,-151.0,0.00011096,2]
[421969092,1778379038000,-150.0,0.0001108,2]
[421969103,1778379038000,-4909.43223921,0.00011099,2]
[421969090,1778379038000,-150.09346512,0.00011079,2]
[421969105,1778379038000,-4909.43223916,0.00011099,2]
[421969110,1778379038000,-4909.43223916,0.00011099,2]
[421969112,1778379038000,-4909.43223916,0.00011099,2]
[421969094,1778379038000,-150.09346512,0.00011091,2]
[421969114,1778379038000,-4909.43223916,0.00011099,2]
[421969203,1778379039000,-150.09346512,0.00011442,2]
[421969200,1778379039000,-150.09346512,0.00011418,2]
[421969204,1778379039000,-150.0,0.00011446,2]
[421969205,1778379039000,-150.09346512,0.00011455,2]
[421969195,1778379039000,-150.0,0.000114,2]
[421969192,1778379039000,-150.0,0.000114,2]
[421969190,1778379039000,-4909.43223916,0.0001139,2]
[421969194,1778379039000,-150.0,0.000114,2]
[421969206,1778379039000,-150.09346512,0.00011467,2]
[421969193,1778379039000,-949.77534031,0.000114,2]
[421969198,1778379039000,-150.09346512,0.00011406,2]
[421969207,1778379039000,-150.09346512,0.00011479,2]
[421969212,1778379039000,-150.0,0.0001152,2]
[421969202,1778379039000,-150.0,0.0001144,2]
[421969209,1778379039000,-150.09346512,0.00011491,2]
[421969208,1778379039000,-150.0,0.0001148,2]
[421969201,1778379039000,-150.09346512,0.0001143,2]
[421969211,1778379039000,-150.09346512,0.00011515,2]
[421969221,1778379039000,-150.09346512,0.00011588,2]
[421969210,1778379039000,-150.09346512,0.00011503,2]
[421969222,1778379039000,-150.0,0.000116,2]
[421969213,1778379039000,-150.09346512,0.00011527,2]
[421969223,1778379039000,-150.09346512,0.000116,2]
[421969215,1778379039000,-150.09346512,0.00011539,2]
[421969188,1778379039000,-150.09346512,0.00011382,2]
[421969199,1778379039000,-433.0,0.00011408,2]
[421969189,1778379039000,-33865.2520738,0.0001139,2]
[421969167,1778379039000,-932.3819205,0.00011221,2]
[421969191,1778379039000,-150.09346512,0.00011394,2]
[421969214,1778379039000,-150.0,0.00011538,2]
[421969162,1778379039000,-150.09346512,0.00011188,2]
[421969164,1778379039000,-150.0,0.000112,2]
[421969169,1778379039000,-150.09346512,0.00011224,2]
[421969171,1778379039000,-150.0,0.0001124,2]
[421969170,1778379039000,-150.09346512,0.00011236,2]
[421969166,1778379039000,-150.09346512,0.00011212,2]
[421969168,1778379039000,-488.82693996,0.00011221,2]
[421969173,1778379039000,-150.09346512,0.00011261,2]
[421969172,1778379039000,-150.09346512,0.00011248,2]
[421969165,1778379039000,-150.09346512,0.000112,2]
[421969176,1778379039000,-150.0,0.0001128,2]
[421969196,1778379039000,-150.0,0.000114,2]
[421969178,1778379039000,-150.09346512,0.00011297,2]
[421969174,1778379039000,-150.0,0.00011262,2]
[421969177,1778379039000,-150.09346512,0.00011285,2]
[421969182,1778379039000,-150.09346512,0.00011333,2]
[421969183,1778379039000,-150.09346512,0.00011345,2]
[421969175,1778379039000,-150.09346512,0.00011273,2]
[421969185,1778379039000,-150.09346512,0.00011358,2]
[421969180,1778379039000,-150.0,0.0001132,2]
[421969181,1778379039000,-150.09346512,0.00011321,2]
[421969184,1778379039000,-150.0,0.00011354,2]
[421969187,1778379039000,-150.09346512,0.0001137,2]
[421969197,1778379039000,-150.0,0.000114,2]
[421969186,1778379039000,-150.0,0.0001136,2]
[421969179,1778379039000,-150.09346512,0.00011309,2]
[421969218,1778379039000,-150.09346512,0.00011564,2]
[421969252,1778379039000,-150.0,0.00011815,2]
[421969216,1778379039000,-150.09346512,0.00011552,2]
[421969253,1778379039000,-150.09346512,0.00011818,2]
[421969278,1778379039000,-380.52932165,0.00012,2]
[421969256,1778379039000,-150.09346512,0.00011842,2]
[421969255,1778379039000,-150.0,0.0001184,2]
[421969254,1778379039000,-150.09346512,0.0001183,2]
[421969258,1778379039000,-150.09346512,0.00011867,2]
[421969259,1778379039000,-150.09346512,0.00011879,2]
[421969262,1778379039000,-150.09346512,0.00011891,2]
[421969260,1778379039000,-150.0,0.0001188,2]
[421969269,1778379039000,-150.09346512,0.00011927,2]
[421969261,1778379039000,-541.16570416,0.0001189,2]
[421969270,1778379039000,-150.09346512,0.00011939,2]
[421969251,1778379039000,-150.09346512,0.00011806,2]
[421969264,1778379039000,-4909.43223916,0.000119,2]
[421969266,1778379039000,-150.0,0.00011908,2]
[421969267,1778379039000,-150.09346512,0.00011915,2]
[421969265,1778379039000,-150.09346512,0.00011903,2]
[421969268,1778379039000,-150.0,0.0001192,2]
[421969272,1778379039000,-150.0,0.0001196,2]
[421969271,1778379039000,-150.09346512,0.00011952,2]
[421969273,1778379039000,-150.09346512,0.00011964,2]
[421969274,1778379039000,-150.09346512,0.00011976,2]
[421969275,1778379039000,-150.09346512,0.00011988,2]
[421969276,1778379039000,-773449.78934661,0.00012,2]
[421969277,1778379039000,-27207.78442402,0.00012,2]
[421969217,1778379039000,-150.0,0.0001156,2]
[421969263,1778379039000,-33865.2520738,0.000119,2]
[421969250,1778379039000,-150.0,0.000118,2]
[421969257,1778379039000,-150.09346512,0.00011855,2]
[421969249,1778379039000,-150.09346512,0.00011794,2]
[421969219,1778379039000,-150.09346512,0.00011576,2]
[421969220,1778379039000,-2000.0,0.00011579,2]
[421969225,1778379039000,-419.04083002,0.00011621,2]
[421969224,1778379039000,-150.09346512,0.00011612,2]
[421969235,1778379039000,-150.09346512,0.00011673,2]
[421969227,1778379039000,-150.09346512,0.00011624,2]
[421969226,1778379039000,-1000.0,0.00011621,2]
[421969248,1778379039000,-150.09346512,0.00011782,2]
[421969236,1778379039000,-150.0,0.0001168,2]
[421969229,1778379039000,-150.09346512,0.00011636,2]
[421969228,1778379039000,-150.0,0.00011631,2]
[421969230,1778379039000,-150.0,0.0001164,2]
[421969232,1778379039000,-4909.43223916,0.00011645,2]
[421969233,1778379039000,-150.09346512,0.00011648,2]
[421969234,1778379039000,-150.09346512,0.00011661,2]
[421969231,1778379039000,-33865.2520738,0.00011645,2]
[421969244,1778379039000,-150.09346512,0.00011745,2]
[421969247,1778379039000,-150.09346512,0.0001177,2]
[421969246,1778379039000,-150.0,0.0001176,2]
[421969245,1778379039000,-150.09346512,0.00011758,2]
[421969243,1778379039000,-150.09346512,0.00011733,2]
[421969242,1778379039000,-150.0,0.00011723,2]
[421969240,1778379039000,-150.0,0.0001172,2]
[421969237,1778379039000,-150.09346512,0.00011685,2]
[421969239,1778379039000,-150.09346512,0.00011709,2]
[421969238,1778379039000,-150.09346512,0.00011697,2]
[421969241,1778379039000,-150.09346512,0.00011721,2]
[421969291,1778379040000,-319.12008898,0.00012168,2]
[421969288,1778379040000,-155.33429152,0.00012,2]
[421969287,1778379040000,-154.74566253,0.00012,2]
[421969289,1778379040000,-150.09346512,0.00012,2]
[421969285,1778379040000,-156.9664646,0.00012,2]
[421969286,1778379040000,-150.73208603,0.00012,2]
[421969280,1778379040000,-9442.12713269,0.00012,2]
[421969284,1778379040000,-152.38538153,0.00012,2]
[421969281,1778379040000,-1278409.69381035,0.00012,2]
[421969282,1778379040000,-241.09766686,0.00012,2]
[421969279,1778379040000,-175.56571433,0.000119,2]
[421969290,1778379040000,-2351.0,0.00012099,2]
[421969283,1778379040000,-154.20248557,0.00012,2]
[421969292,1778379040000,-634.83249747,0.00012183,2]
[421969293,1778379040000,-2080.17592889,0.0001221,2]
[421969306,1778379040000,-151.0,0.00012215,2]
[421969308,1778379040000,-151.0,0.00012215,2]
[421969305,1778379040000,-151.0,0.00012215,2]
[421969304,1778379040000,-151.0,0.00012215,2]
[421969302,1778379040000,-151.0,0.00012215,2]
[421969309,1778379040000,-151.0,0.00012215,2]
[421969307,1778379040000,-151.0,0.00012215,2]
[421969303,1778379040000,-151.0,0.00012215,2]
[421969301,1778379040000,-151.0,0.00012215,2]
[421969298,1778379040000,-151.0,0.00012215,2]
[421969297,1778379040000,-151.0,0.00012215,2]
[421969296,1778379040000,-151.0,0.00012215,2]
[421969299,1778379040000,-151.0,0.00012215,2]
[421969295,1778379040000,-151.0,0.00012215,2]
[421969300,1778379040000,-151.0,0.00012215,2]
[421969294,1778379040000,-202.07076129,0.00012215,2]
[421969347,1778379041000,-308.48998004,0.00013698,2]
[421969348,1778379041000,-500.0,0.00013698,2]
[421969350,1778379041000,-500.0,0.00013698,2]
[421969349,1778379041000,-500.0,0.00013698,2]
[421969368,1778379041000,-500.0,0.00013698,2]
[421969343,1778379041000,-500.0,0.00013698,2]
[421969344,1778379041000,-500.0,0.00013698,2]
[421969339,1778379041000,-500.0,0.00013698,2]
[421969341,1778379041000,-500.0,0.00013698,2]
[421969352,1778379041000,-500.0,0.00013698,2]
[421969342,1778379041000,-500.0,0.00013698,2]
[421969351,1778379041000,-500.0,0.00013698,2]
[421969369,1778379041000,-500.0,0.00013698,2]
[421969353,1778379041000,-500.0,0.00013698,2]
[421969356,1778379041000,-500.0,0.00013698,2]
[421969355,1778379041000,-500.0,0.00013698,2]
[421969354,1778379041000,-500.0,0.00013698,2]
[421969359,1778379041000,-500.0,0.00013698,2]
[421969370,1778379041000,-500.0,0.00013698,2]
[421969340,1778379041000,-500.0,0.00013698,2]
[421969371,1778379041000,-500.0,0.00013698,2]
[421969358,1778379041000,-500.0,0.00013698,2]
[421969362,1778379041000,-500.0,0.00013698,2]
[421969363,1778379041000,-500.0,0.00013698,2]
[421969365,1778379041000,-174.50419108,0.00013698,2]
[421969364,1778379041000,-500.0,0.00013698,2]
[421969357,1778379041000,-500.0,0.00013698,2]
[421969338,1778379041000,-500.0,0.00013698,2]
[421969330,1778379041000,-333.2,0.0001324,2]
[421969337,1778379041000,-500.0,0.00013698,2]
[421969311,1778379041000,-151.0,0.00012215,2]
[421969310,1778379041000,-151.0,0.00012215,2]
[421969312,1778379041000,-151.0,0.00012215,2]
[421969314,1778379041000,-151.0,0.00012215,2]
[421969315,1778379041000,-333.2,0.00012316,2]
[421969316,1778379041000,-346.39,0.00012329,2]
[421969317,1778379041000,-285.96102957,0.00012367,2]
[421969320,1778379041000,-310.96759265,0.000125,2]
[421969321,1778379041000,-736.0,0.00012549,2]
[421969319,1778379041000,-250.0,0.0001246,2]
[421969318,1778379041000,-48127.07,0.00012459,2]
[421969313,1778379041000,-151.0,0.00012215,2]
[421969336,1778379041000,-500.0,0.00013698,2]
[421969332,1778379041000,-1561.0,0.00013309,2]
[421969323,1778379041000,-607.51,0.00012687,2]
[421969325,1778379041000,-179.68,0.00012795,2]
[421969327,1778379041000,-5169.8016405,0.00013,2]
[421969326,1778379041000,-333.2,0.00012932,2]
[421969333,1778379041000,-37105.14459796,0.000134,2]
[421969322,1778379041000,-333.2,0.00012624,2]
[421969331,1778379041000,-2236.95670848,0.00013306,2]
[421969329,1778379041000,-5407.87653927,0.0001305,2]
[421969324,1778379041000,-2157.14243826,0.00012758,2]
[421969345,1778379041000,-500.0,0.00013698,2]
[421969335,1778379041000,-151.0,0.00013696,2]
[421969334,1778379041000,-333.2,0.00013548,2]
[421969328,1778379041000,-2000.0,0.00013026,2]
[421969360,1778379041000,-500.0,0.00013698,2]
[421969346,1778379041000,-500.0,0.00013698,2]
[421969366,1778379041000,-500.0,0.00013698,2]
[421969395,1778379041000,-500.0,0.00013698,2]
[421969401,1778379041000,-500.0,0.00013698,2]
[421969402,1778379041000,-500.0,0.00013698,2]
[421969404,1778379041000,-500.0,0.00013698,2]
[421969406,1778379041000,-500.0,0.00013698,2]
[421969407,1778379041000,-500.0,0.00013698,2]
[421969419,1778379041000,-500.0,0.00013698,2]
[421969409,1778379041000,-500.0,0.00013698,2]
[421969408,1778379041000,-500.0,0.00013698,2]
[421969411,1778379041000,-500.0,0.00013698,2]
[421969412,1778379041000,-500.0,0.00013698,2]
[421969415,1778379041000,-500.0,0.00013698,2]
[421969414,1778379041000,-500.0,0.00013698,2]
[421969410,1778379041000,-500.0,0.00013698,2]
[421969413,1778379041000,-500.0,0.00013698,2]
[421969418,1778379041000,-507.86082576,0.00013698,2]
[421969416,1778379041000,-500.0,0.00013698,2]
[421969417,1778379041000,-500.0,0.00013698,2]
[421969422,1778379041000,-500.0,0.00013698,2]
[421969420,1778379041000,-500.0,0.00013698,2]
[421969423,1778379041000,-500.0,0.00013698,2]
[421969421,1778379041000,-500.0,0.00013698,2]
[421969424,1778379041000,-500.0,0.00013698,2]
[421969427,1778379041000,-500.0,0.00013698,2]
[421969426,1778379041000,-500.0,0.00013698,2]
[421969428,1778379041000,-500.0,0.00013698,2]
[421969361,1778379041000,-500.0,0.00013698,2]
[421969397,1778379041000,-500.0,0.00013698,2]
[421969396,1778379041000,-500.0,0.00013698,2]
[421969425,1778379041000,-500.0,0.00013698,2]
[421969405,1778379041000,-500.0,0.00013698,2]
[421969403,1778379041000,-500.0,0.00013698,2]
[421969367,1778379041000,-500.0,0.00013698,2]
[421969373,1778379041000,-500.0,0.00013698,2]
[421969383,1778379041000,-500.0,0.00013698,2]
[421969372,1778379041000,-500.0,0.00013698,2]
[421969374,1778379041000,-500.0,0.00013698,2]
[421969375,1778379041000,-500.0,0.00013698,2]